Workbook

Sheet 封面
A1: 2022年部门预算公开表
D4: 单位编码： | E4: 84
D5: 单位名称： | E5: 岳阳县教育体育局(汇总)

Sheet 目录
B1: 部门预算公开表
B3: 一、部门预算报表
B4: 1 | C4: 收支总表
B5: 2 | C5: 收入总表
B6: 3 | C6: 支出总表
B7: 4 | C7: 支出预算分类汇总表（按政府预算经济分类）
B8: 5 | C8: 支出预算分类汇总表（按部门预算经济分类）
B9: 6 | C9: 财政拨款收支总表
B10: 7 | C10: 一般公共预算支出表
B11: 8 | C11: 一般公共预算基本支出表
B12: 9 | C12: 一般公共预算基本支出表--人员经费(工资福利支出)(按政府预算经济分类)
B13: 10 | C13: 一般公共预算基本支出表--人员经费(工资福利支出)(按部门预算经济分类)
B14: 11 | C14: 一般公共预算基本支出表--人员经费(对个人和家庭的补助)(按政府预算经济分类)
B15: 12 | C15: 一般公共预算基本支出表--人员经费(对个人和家庭的补助)（按部门预算经济分类）
B16: 13 | C16: 一般公共预算基本支出表--公用经费(商品和服务支出)（按政府预算经济分类）
B17: 14 | C17: 一般公共预算基本支出表--公用经费(商品和服务支出)(按部门预算经济分类)
B18: 15 | C18: 一般公共预算“三公”经费支出表
B19: 16 | C19: 政府性基金预算支出表
B20: 17 | C20: 政府性基金预算支出分类汇总表（按政府预算经济分类）
B21: 18 | C21: 政府性基金预算支出分类汇总表（按部门预算经济分类）
B22: 19 | C22: 国有资本经营预算表
B23: 20 | C23: 财政专户管理资金预算支出表
B24: 21 | C24: 专项资金预算汇总表
B25: 22 | C25: 其他项目支出绩效目标表
B26: 23 | C26: 部门整体支出绩效目标表

Sheet 1收支总表
A2: 收支总表
A3: 单位：岳阳县教育体育局(汇总) | G3: 金额单位：万元
A4: 收入 | C4: 支出
A5: 项目 | B5: 预算数 | C5: 项目（按功能分类） | D5: 预算数 | E5: 项目（按部门预算经济分类） | F5: 预算数 | G5: 项目（按政府预算经济分类） | H5: 预算数
A6: 一、一般公共预算拨款收入 | B6: =B7+B8 -> 95,564.00 | C6: （一）一般公共服务支出 | E6: 一、基本支出 | F6: =F7+F8+F9 -> 83,418.27 | G6: 一、机关工资福利支出 | H6: 677.88
A7: 经费拨款 | B7: 90,613.50 | C7: （二）外交支出 | E7: 工资福利支出 | F7: 57,057.30 | G7: 二、机关商品和服务支出 | H7: 1,003.17
A8: 纳入一般公共预算管理的非税收入拨款 | B8: 4,950.50 | C8: （三）国防支出 | E8: 商品和服务支出 | F8: 11,321.97 | G8: 三、机关资本性支出（一） | H8: 1,007.80
A9: 行政事业性收费收入 | C9: （四）公共安全支出 | E9: 对个人和家庭的补助 | F9: 15,039.00 | G9: 四、机关资本性支出（二）
A10: 专项收入 | C10: （五）教育支出 | D10: 100,316.86 | E10: 二、项目支出 | F10: =F11+F12+F13+F14+F15+F16+F17+F18+F19+F20 -> 16,898.59 | G10: 五、对事业单位经常性补助 | H10: 72,537.73
A11: 国有资本经营收入 | C11: （六）科学技术支出 | E11: 按项目管理的工资福利支出 | G11: 六、对事业单位资本性补助 | H11: 24,067.11
A12: 国有资源（资产）有偿使用收入 | C12: （七）文化旅游体育与传媒支出 | E12: 按项目管理的商品和服务支出 | F12: 4,243.11 | G12: 七、对企业补助
A13: 罚没收入 | C13: （八）社会保障和就业支出 | E13: 按项目管理的对个人和家庭的补助 | G13: 八、对企业资本性支出
A14: 捐赠收入 | C14: （九）社会保险基金支出 | E14: 债务利息及费用支出 | G14: 九、对个人和家庭的补助 | H14: 1,023.17
A15: 政府住房基金收入 | C15: （十）卫生健康支出 | E15: 资本性支出（基本建设） | G15: 十、对社会保障基金补助
A16: 其他纳入一般公共预算管理的非税收入 | C16: （十一）节能环保支出 | E16: 资本性支出 | F16: 8,552.95 | G16: 十一、债务利息及费用支出
A17: 一般债券 | C17: （十二）城乡社区支出 | E17: 对企业补助（基本建设） | G17: 十二、债务还本支出
A18: 外国政府和国际组织贷款 | C18: （十三）农林水支出 | E18: 对企业补助 | G18: 十三、转移性支出
A19: 外国政府和国际组织捐赠 | C19: （十四）交通运输支出 | E19: 对社会保障基金补助 | G19: 十四、其他支出
A20: 二、政府性基金预算拨款收入 | C20: （十五）资源勘探工业信息等支出 | E20: 其他支出 | F20: 4,102.53
A21: 三、国有资本经营预算拨款收入 | C21: （十六）商业服务业等支出 | E21: 三、事业单位经营服务支出
A22: 四、社会保障基金预算资金 | C22: （十七）金融支出
A23: 五、财政专户管理资金收入 | C23: （十八）援助其他地区支出
A24: 六、上级财政补助收入 | C24: （十九）自然资源海洋气象等支出
A25: 一般公共预算补助 | C25: （二十）住房保障支出
A26: 政府性基金补助 | C26: （二十一）粮油物资储备支出
A27: 国有资本经营预算补助 | C27: （二十二）国有资本经营预算支出
A28: 七、事业收入 | C28: （二十三）灾害防治及应急管理支出
A29: 八、事业单位经营收入 | C29: （二十四）预备费
A30: 九、上级单位补助收入 | C30: （二十五）其他支出
A31: 十、附属单位上缴收入 | C31: （二十六）转移性支出
A32: 十一、其他收入 | B32: 4,752.86 | C32: （二十七）债务还本支出
C33: （二十八）债务付息支出
C34: （二十九）债务发行费用支出
C35: （三十）抗疫特别国债安排的支出
A37: 本 年 收 入 合 计 | B37: =B6+B32 -> 100,316.86 | C37: 本 年 支 出 合 计 | D37: 100,316.86 | E37: 本 年 支 出 合 计 | F37: =F6+F10+F21 -> 100,316.86 | G37: 本 年 支 出 合 计 | H37: =SUM(H6:H19) -> 100,316.86
A38: 上年结转结余 | B38: 0.00 | C38: 年终结转结余 | D38: 0.00 | E38: 年终结转结余 | F38: 0.00 | G38: 年终结转结余 | H38: 0.00
A40: 收 入 总 计 | B40: =B37+B38 -> 100,316.86 | C40: 支 出 总 计 | D40: 100,316.86 | E40: 支 出 总 计 | F40: =F37 -> 100,316.86 | G40: 支 出 总 计 | H40: =H37 -> 100,316.86

Sheet 2收入总表
A2: 收入总表
A3: 单位：岳阳县教育体育局(汇总) | X3: 金额单位：万元
A4: 部门（单位）代码 | B4: 部门（单位）名称 | C4: 合计 | D4: 本年收入 | S4: 上年结转结余
D5: 小计 | E5: 一般公共预算 | F5: 政府性基金预算 | G5: 国有资本经营预算 | H5: 社会保险基金预算资金 | I5: 财政专户管理资金 | J5: 上级财政补助收入 | N5: 事业收入 | O5: 事业单位经营收入 | P5: 上级单位补助收入 | Q5: 附属单位上缴收入 | R5: 其他收入 | S5: 小计 | T5: 一般公共预算 | U5: 政府性基金预算 | V5: 国有资本经营预算 | W5: 社会保险基金预算资金 | X5: 财政专户管理资金 | Y5: 单位资金
J6: 一般公共预算补助 | K6: 政府性基金补助 | L6: 国有资本经营预算补助 | M6: 社会保险基金预算资金
B7: 合计
A8: 084 | B8: 岳阳县教育体育局(汇总) | C8: =D8+N8 -> 95,564.00 | D8: =E8 -> 95,564.00 | E8: 95,564.00 | R8: 4,752.86

Sheet 3支出总表
A2: 支出总表
A3: 单位：岳阳县教育体育局(汇总) | K3: 金额单位：万元
A4: 功能科目 | D4: 科目编码 | E4: 科目名称 | F4: 合计 | G4: 基本支出 | H4: 项目支出 | I4: 事业单位经营支出 | J4: 上缴上级支出 | K4: 对附属单位补助支出
A5: 类 | B5: 款 | C5: 项
A6: 205 | D6: 205 | E6: 教育支出 | F6: =G6+H6 -> 100,316.86 | G6: =G7+G9+G14+G16 -> 83,418.27 | H6: =H7+H9+H14+H16 -> 16,898.59
A7: 205 | B7: 01 | D7: 20501 | E7: 教育管理事务 | F7: =G7+H7 -> 3,077.54 | G7: 1798.02 | H7: 1279.52
A8: 205 | B8: 01 | C8: 02 | D8: 2050102 | E8: 一般行政管理事务 | F8: =G8+H8 -> 3,077.54 | G8: 1798.02 | H8: 1279.52
A9: 205 | B9: 02 | D9: 20502 | E9: 普通教育 | F9: 90,184.33 | G9: 76094.45 | H9: 14089.88
A10: 205 | B10: 02 | C10: 01 | D10: 2050201 | E10: 学前教育 | F10: 8,844.94 | G10: 7752.61 | H10: 1092.33
A11: 205 | B11: 02 | C11: 02 | D11: 2050202 | E11: 小学教育 | F11: 28,128.06 | G11: 22745.51 | H11: 5382.55
A12: 205 | B12: 02 | C12: 03 | D12: 2050203 | E12: 初中教育 | F12: 34,853.24 | G12: 29507.08 | H12: 5346.16
A13: 205 | B13: 02 | C13: 04 | D13: 2050204 | E13: 高中教育 | F13: 18,358.09 | G13: 16089.25 | H13: 2268.84
A14: 205 | B14: 03 | D14: 20503 | E14: 职业教育 | F14: 5,625.36 | G14: 4853.46 | H14: 771.90
A15: 205 | B15: 03 | C15: 02 | D15: 2050302 | E15: 中职业教育 | F15: 5,625.36 | G15: 4853.46 | H15: 771.90
A16: 205 | B16: 07 | D16: 20507 | E16: 特殊教育 | F16: 1,429.63 | G16: 672.34 | H16: 757.29
A17: 205 | B17: 07 | C17: 01 | D17: 2050701 | E17: 特殊学校教育 | F17: 1,429.63 | G17: 672.34 | H17: 757.29

Sheet 4支出分类(政府预算)
A2: 支出预算分类汇总表（按政府预算经济分类）
A3: 单位：岳阳县教育体育局(汇总) | S3: 金额单位：万元
A4: 功能科目 | D4: 单位代码 | E4: 单位名称（功能科目） | F4: 总 计 | G4: 机关工资福利支出 | H4: 机关商品和服务支出 | I4: 机关资本性支出(一) | J4: 机关资本性支出(二) | K4: 对事业单位经常性补助 | L4: 对事业单位资本性补助 | M4: 对企业补助 | N4: 对企业资本性支出 | O4: 对个人和家庭的补助 | P4: 对社会保障基金补助 | Q4: 债务利息及费用支出 | R4: 债务还本支出 | S4: 转移性支出 | T4: 其他支出
A5: 类 | B5: 款 | C5: 项
A6: 205 | E6: 教育支出 | F6: =SUM(G6:T6) -> 100,316.86 | G6: =G7+G9+G14+G16 -> 677.88 | H6: =H7+H9+H14+H16 -> 1,003.17 | I6: 1,007.80 | J6: 0.00 | K6: 72,537.73 | L6: 24,067.11 | M6: 0.00 | N6: 0.00 | O6: 1,023.17 | P6: 0.00 | Q6: 0.00 | R6: 0.00 | S6: 0.00 | T6: 0.00
A7: 205 | B7: 01 | D7: 084 | E7: 教育管理事务 | F7: =SUM(G7:T7) -> 3,418.57 | G7: 23.10 | H7: 34.19 | I7: 34.19 | K7: 2,461.37 | L7: 811.54 | O7: 54.19
A8: 205 | B8: 01 | C8: 02 | D8: 084 | E8: 一般行政管理事务 | F8: =SUM(G8:T8) -> 3,418.57 | G8: 23.10 | H8: 34.19 | I8: 34.19 | K8: 2,461.37 | L8: 811.54 | O8: 54.19
A9: 205 | B9: 02 | D9: 084 | E9: 普通教育 | F9: 89,008.25 | G9: 601.46 | H9: 890.08 | I9: 890.08 | K9: 64,374.56 | L9: 21,361.98 | O9: 890.08
A10: 205 | B10: 02 | C10: 01 | D10: 084 | E10: 学前教育 | F10: 6,922.71 | G10: 46.93 | H10: 69.45 | I10: 69.45 | K10: 5,000.57 | L10: 1,666.86 | O10: 69.45
A11: 205 | B11: 02 | C11: 02 | D11: 084 | E11: 小学教育 | F11: 35,631.77 | G11: 241.56 | H11: 357.48 | I11: 357.48 | K11: 25,738.33 | L11: 8,579.44 | O11: 357.48
A12: 205 | B12: 02 | C12: 03 | D12: 084 | E12: 初中教育 | F12: 25,038.77 | G12: 167.79 | H12: 248.31 | I12: 248.31 | K12: 18,166.70 | L12: 5,959.36 | O12: 248.31
A13: 205 | B13: 02 | C13: 04 | D13: 084 | E13: 高中教育 | F13: 21,415.00 | G13: 145.18 | H13: 214.85 | I13: 214.85 | K13: 15,468.96 | L13: 5,156.32 | O13: 214.85
A14: 205 | B14: 03 | D14: 084 | E14: 职业教育 | F14: 6,462.34 | G14: 43.67 | H14: 64.62 | I14: 64.62 | K14: 4,673.84 | L14: 1,550.96 | O14: 64.62
A15: 205 | B15: 03 | C15: 02 | D15: 084 | E15: 中职业教育 | F15: 6,462.34 | G15: 43.67 | H15: 64.62 | I15: 64.62 | K15: 4,673.84 | L15: 1,550.96 | O15: 64.62
A16: 205 | B16: 07 | D16: 084 | E16: 特殊教育 | F16: 1,427.70 | G16: 9.65 | H16: 14.28 | I16: 18.91 | K16: 1,027.96 | L16: 342.63 | O16: 14.28
A17: 205 | B17: 07 | C17: 01 | D17: 084 | E17: 特殊学校教育 | F17: 1,427.70 | G17: 9.65 | H17: 14.28 | I17: 18.91 | K17: 1,027.96 | L17: 342.63 | O17: 14.28

Sheet 5支出分类（部门预算）
A2: 支出预算分类汇总表（按部门预算经济分类）
A3: 单位：岳阳县教育体育局(汇总) | T3: 金额单位：万元
A4: 功能科目 | D4: 单位代码 | E4: 单位名称（功能科目） | F4: 总 计 | G4: 基本支出 | K4: 项目支出
A5: 类 | B5: 款 | C5: 项 | G5: 合计 | H5: 工资福利支出 | I5: 一般商品和服务支出 | J5: 对个人和家庭的补助 | K5: 合计 | L5: 按项目管理的工资福利支出 | M5: 按项目管理的商品和服务支出 | N5: 按项目管理的对个人和家庭的补助 | O5: 债务利息及费用支出 | P5: 资本性支出（基本建设） | Q5: 资本性支出 | R5: 对企业补助（基本建设） | S5: 对企业补助 | T5: 对社会保障基金补助 | U5: 其他支出
A6: 205 | E6: 教育支出 | F6: =F7+F9+F14+F16 -> 100,316.86 | G6: =G7+G9+G14+G16 -> 83,418.27 | H6: 57,057.30 | I6: 11,321.97 | J6: 15,039.00 | K6: 16,898.59 | L6: 0.00 | M6: 4,243.11 | N6: 0.00 | O6: 0.00 | P6: 0.00 | Q6: 8,552.95 | R6: 0.00 | S6: 0.00 | T6: 0.00 | U6: 4,102.53
A7: 205 | B7: 01 | D7: 084 | E7: 教育管理事务 | F7: =G7+K7 -> 3,077.54 | G7: =SUM(H7:J7) -> 1,798.02 | H7: 1154.08 | I7: 356.94 | J7: 287.00 | K7: =SUM(L7:U7) -> 1,279.52 | M7: 187.62 | Q7: 516.89 | U7: 575.01
A8: 205 | B8: 01 | C8: 02 | D8: 084 | E8: 一般行政管理事务 | F8: =G8+K8 -> 3,077.54 | G8: =SUM(H8:J8) -> 1,798.02 | H8: 1154.08 | I8: 356.94 | J8: 287.00 | K8: 1,279.52 | M8: 187.62 | Q8: 516.89 | U8: 575.01
A9: 205 | B9: 02 | D9: 084 | E9: 普通教育 | F9: 90,184.33 | G9: 76,094.45 | H9: 52010.38 | I9: 10285.07 | J9: 13799.00 | K9: 14,089.88 | M9: 3,857.66 | Q9: 7503.84 | U9: 2728.38
A10: 205 | B10: 02 | C10: 01 | D10: 084 | E10: 学前教育 | F10: 8,844.94 | G10: 7,752.61 | H10: 5234.20 | I10: 1078.51 | J10: 1439.90 | K10: 1,092.33 | M10: 61.05 | Q10: 550.10 | U10: 481.18
A11: 205 | B11: 02 | C11: 02 | D11: 084 | E11: 小学教育 | F11: 28,128.06 | G11: 22,745.51 | H11: 15590.29 | I11: 3035.52 | J11: 4119.70 | K11: 5,382.55 | M11: 1,283.16 | Q11: 3350.29 | U11: 749.10
A12: 205 | B12: 02 | C12: 03 | D12: 084 | E12: 初中教育 | F12: 34,853.24 | G12: 29,507.08 | H12: 20733.45 | I12: 4014.03 | J12: 4759.60 | K12: 5,346.16 | M12: 1,344.21 | Q12: 3153.25 | U12: 848.70
A13: 205 | B13: 02 | C13: 04 | D13: 084 | E13: 高中教育 | F13: 18,358.09 | G13: 16,089.25 | H13: 10452.44 | I13: 2157.01 | J13: 3479.80 | K13: 2,268.84 | M13: 1,169.24 | Q13: 450.20 | U13: 649.40
A14: 205 | B14: 03 | D14: 084 | E14: 职业教育 | F14: 5,625.36 | G14: 4,853.46 | H14: 3340.80 | I14: 634.06 | J14: 878.60 | K14: 771.90 | M14: 142.9 | Q14: 225.00 | U14: 404.00
A15: 205 | B15: 03 | C15: 02 | D15: 084 | E15: 中职业教育 | F15: 5,625.36 | G15: 4,853.46 | H15: 3340.80 | I15: 634.06 | J15: 878.60 | K15: 771.90 | M15: 142.9 | Q15: 225.00 | U15: 404.00
A16: 205 | B16: 07 | D16: 084 | E16: 特殊教育 | F16: 1,429.63 | G16: 672.34 | H16: 552.04 | I16: 45.90 | J16: 74.40 | K16: 757.29 | M16: 54.93 | Q16: 307.22 | U16: 395.14
A17: 205 | B17: 07 | C17: 01 | D17: 084 | E17: 特殊学校教育 | F17: 1,429.63 | G17: 672.34 | H17: 552.04 | I17: 45.90 | J17: 74.40 | K17: 757.29 | M17: 54.93 | Q17: 307.22 | U17: 395.14

Sheet 6财政拨款收支总表
A2: 财政拨款收支总表
A3: 单位：岳阳县教育体育局(汇总) | D3: 金额单位：万元
A4: 收入 | C4: 支出
A5: 项目 | B5: 预算数 | C5: 项目 | D5: 预算数
A6: 一、本年收入 | B6: =B7+B13 -> 95,564.00 | C6: 一、本年支出
A7: （一）一般公共预算拨款 | B7: =B8+B9 -> 95,564.00 | C7: （一）一般公共服务支出
A8: 经费拨款 | B8: 90,613.50 | C8: （二）外交支出
A9: 纳入一般公共预算管理的非税收入拨款 | B9: 4,950.50 | C9: （三）国防支出
A10: （二）政府性基金预算拨款 | C10: （四）公共安全支出
A11: （三）国有资本经营预算拨款 | C11: （五）教育支出 | D11: =B40 -> 95,564.00
A12: （四）社会保险基金预算资金 | C12: （六）科学技术支出
A13: 二、上年结转 | C13: （七）文化旅游体育与传媒支出
A14: （一）一般公共预算拨款 | C14: （八）社会保障和就业支出
A15: （二）政府性基金预算拨款 | C15: （九）社会保险基金支出
A16: （三）国有资本经营预算拨款 | C16: （十）卫生健康支出
A17: （四）社会保险基金预算资金 | C17: （十一）节能环保支出
C18: （十二）城乡社区支出
C19: （十三）农林水支出
C20: （十四）交通运输支出
C21: （十五）资源勘探工业信息等支出
C22: （十六）商业服务业等支出
C23: （十七）金融支出
C24: （十八）援助其他地区支出
C25: （十九）自然资源海洋气象等支出
C26: （二十）住房保障支出
C27: （二十一）粮油物资储备支出
C28: （二十二）国有资本经营预算支出
C29: （二十三）灾害防治及应急管理支出
C30: （二十四）预备费
C31: （二十五）其他支出
C32: （二十六）转移性支出
C33: （二十七）债务还本支出
C34: （二十八）债务付息支出
C35: （二十九）债务发行费用支出
C36: （三十）抗疫特别国债安排的支出
C38: 二、年终结转结余
A40: 收 入 总 计 | B40: =B6 -> 95,564.00 | C40: 支 出 总 计 | D40: =D11 -> 95,564.00

Sheet 7一般公共预算支出表
A2: 一般公共预算支出表
A3: 单位：岳阳县教育体育局(汇总) | J3: 金额单位：万元
A4: 功能科目 | D4: 科目编码 | E4: 科目名称 | F4: 合计 | G4: 基本支出 | K4: 项目支出
G5: 小计 | H5: 人员经费 | J5: 公用经费
A6: 类 | B6: 款 | C6: 项 | H6: 工资福利支出 | I6: 对个人和家庭的补助
A7: 205 | D7: 205 | E7: 教育支出 | F7: =G7+K7 -> 100,316.86 | G7: 83,418.27 | H7: 57,057.30 | I7: 15,039.00 | J7: 11,321.97 | K7: 16,898.59
A8: 205 | B8: 01 | D8: 20501 | E8: 教育管理事务 | F8: 2,720.59 | G8: 1,441.08 | H8: 1154.08 | I8: 287.00 | J8: 356.94 | K8: 1279.51
A9: 205 | B9: 01 | C9: 02 | D9: 2050102 | E9: 一般行政管理事务 | F9: 2,720.59 | G9: 1,441.08 | H9: 1154.08 | I9: 287.00 | J9: 356.94 | K9: 1279.51
A10: 205 | B10: 02 | D10: 20502 | E10: 普通教育 | F10: 75,236.41 | G10: 64,909.38 | H10: 51110.38 | I10: 13799.00 | J10: 10,285.07 | K10: 10327.03
A11: 205 | B11: 02 | C11: 01 | D11: 2050201 | E11: 学前教育 | F11: 7,716.43 | G11: 6,674.10 | H11: 5234.20 | I11: 1439.90 | J11: 1,078.51 | K11: 1042.33
A12: 205 | B12: 02 | C12: 02 | D12: 2050202 | E12: 小学教育 | F12: 25,142.54 | G12: 19,409.99 | H12: 15290.29 | I12: 4119.70 | J12: 3,035.52 | K12: 5732.55
A13: 205 | B13: 02 | C13: 03 | D13: 2050203 | E13: 初中教育 | F13: 27,373.49 | G13: 25,193.05 | H13: 20433.45 | I13: 4759.60 | J13: 4,014.03 | K13: 2180.44
A14: 205 | B14: 02 | C14: 04 | D14: 2050204 | E14: 高中教育 | F14: 15,003.94 | G14: 13,632.24 | H14: 10152.44 | I14: 3479.80 | J14: 2,157.01 | K14: 1371.70
A15: 205 | B15: 03 | D15: 20503 | E15: 职业教育 | F15: 4,971.30 | G15: 4,219.40 | H15: 3340.80 | I15: 878.60 | J15: 634.06 | K15: 751.90
A16: 205 | B16: 03 | C16: 02 | D16: 2050302 | E16: 中等职业教育 | F16: 4,971.30 | G16: 4,219.40 | H16: 3340.80 | I16: 878.60 | J16: 634.06 | K16: 751.90
A17: 205 | B17: 07 | D17: 20507 | E17: 特殊教育 | F17: 1,313.73 | G17: 626.44 | H17: 552.04 | I17: 74.40 | J17: 45.9 | K17: 687.29
A18: 205 | B18: 07 | C18: 01 | D18: 2050701 | E18: 特殊学校教育 | F18: 1,313.73 | G18: 626.44 | H18: 552.04 | I18: 74.40 | J18: 45.9 | K18: 687.29

Sheet 8一般公共预算基本支出表
A1: 一般公共预算基本支出表
A2: 单位：岳阳县教育体育局(汇总) | E2: 金额单位：万元
A3: 部门预算支出经济分类科目 | C3: 本年一般公共预算基本支出
A4: 科目编码 | B4: 科目名称 | C4: 合计 | D4: 人员经费 | E4: 公用经费
A5: 301 | B5: 工资福利支出 | C5: =D5+E5 -> 57,057.30 | D5: =SUM(D6:D18) -> 57,057.30 | E5: =SUM(E6:E18) -> 0
A6: 30101 | B6: 基本工资 | C6: 21,859.54 | D6: 21,859.54
A7: 30102 | B7: 津贴补贴 | C7: 2,778.50 | D7: 2,778.50
A8: 30103 | B8: 奖金 | C8: 900.00 | D8: 900.00
A9: 30106 | B9: 伙食补助费 | C9: 0
A10: 30107 | B10: 绩效工资 | C10: 15,061.00 | D10: 15,061.00
A11: 30108 | B11: 机关事业单位基本养老保险缴费 | C11: 5,272.00 | D11: 5,272.00
A12: 30109 | B12: 职业年金缴费 | C12: 0
A13: 30110 | B13: 职工基本医疗保险缴费 | C13: 2,611.00 | D13: 2,611.00
A14: 30111 | B14: 公务员医疗补助缴费 | C14: 45.00 | D14: 45.00
A15: 30112 | B15: 其他社会保障缴费 | C15: 621.42 | D15: 621.42
A16: 30113 | B16: 住房公积金 | C16: 2,757.00 | D16: 2,757.00
A17: 30114 | B17: 医疗费 | C17: 0
A18: 30199 | B18: 其他工资福利支出 | C18: 5,151.84 | D18: 5,151.84
A19: 302 | B19: 商品和服务支出 | C19: 11,321.97 | E19: =SUM(E20:E46) -> 11,321.97
A20: 30201 | B20: 办公费 | C20: 957.50 | E20: 957.50
A21: 30202 | B21: 印刷费 | C21: 763.80 | E21: 763.80
A22: 30203 | B22: 咨询费 | C22: 0
A23: 30204 | B23: 手续费 | C23: 0
A24: 30205 | B24: 水费 | C24: 566.60 | E24: 566.60
A25: 30206 | B25: 电费 | C25: 751.90 | E25: 751.90
A26: 30207 | B26: 邮电费 | C26: 180.10 | E26: 180.10
A27: 30208 | B27: 取暖费 | C27: 0
A28: 30209 | B28: 物业管理费 | C28: 999.80 | E28: 999.80
A29: 30211 | B29: 差旅费 | C29: 461.40 | E29: 461.40
A30: 30212 | B30: 因公出国（境）费用 | C30: 0
A31: 30213 | B31: 维修（护）费 | C31: 2,950.25 | E31: 2,950.25
A32: 30214 | B32: 租赁费 | C32: 0
A33: 30215 | B33: 会议费 | C33: 260.50 | E33: 260.50
A34: 30216 | B34: 培训费 | C34: 928.70 | E34: 928.70
A35: 30217 | B35: 公务接待费 | C35: 94.80 | E35: 94.80
A36: 30218 | B36: 专用材料费
A37: 30224 | B37: 被装购置费 | C37: =D37+E37 -> 0
A38: 30225 | B38: 专用燃料费 | C38: 0
A39: 30226 | B39: 劳务费 | C39: 0
A40: 30227 | B40: 委托业务费 | C40: 0
A41: 30228 | B41: 工会经费 | C41: 927.33 | E41: 927.33
A42: 30229 | B42: 福利费 | C42: 63.39 | E42: 63.39
A43: 30231 | B43: 公务用车运行维护费 | C43: 0
A44: 30239 | B44: 其他交通费用 | C44: 413.50 | E44: 413.50
A45: 30240 | B45: 税金及附加费用 | C45: 0
A46: 30299 | B46: 其他商品和服务支出 | C46: 1,002.40 | E46: 1,002.40
A47: 303 | B47: 对个人和家庭的补助 | C47: 15,039.00 | D47: =SUM(D48:D59) -> 15,039.00 | E47: =SUM(E48:E59) -> 0
A48: 30301 | B48: 离休费 | C48: 55.00 | D48: 55.00
A49: 30302 | B49: 退休费 | C49: 0
A50: 30303 | B50: 退职（役）费 | C50: 0
A51: 30304 | B51: 抚恤金 | C51: 0
A52: 30305 | B52: 生活补助 | C52: 7,727.50 | D52: 7,727.50
A53: 30306 | B53: 救济费 | C53: 0
A54: 30307 | B54: 医疗费补助 | C54: 52.00 | D54: 52.00
A55: 30308 | B55: 助学金 | C55: 1,863.60 | D55: 1,863.60
A56: 30309 | B56: 奖励金 | C56: 0
A57: 30310 | B57: 个人农业生产补贴 | C57: 0
A58: 30311 | B58: 代缴社会保险费 | C58: 0
A59: 30399 | B59: 其他对个人和家庭的补助 | C59: 5,340.90 | D59: 5,340.90
A60: 307 | B60: 债务利息及费用支出 | C60: 0 | D60: =SUM(D61:D62) -> 0 | E60: =SUM(E61:E62) -> 0
A61: 30701 | B61: 国内债务付息 | C61: 0
A62: 30702 | B62: 国外债务付息 | C62: 0
A63: 310 | B63: 资本性支出 | C63: 0 | D63: =SUM(D64:D79) -> 0 | E63: =SUM(E64:E79) -> 0
A64: 31001 | B64: 房屋建筑物购建 | C64: 0
A65: 31002 | B65: 办公设备购置 | C65: 0
A66: 31003 | B66: 专用设备购置 | C66: 0
A67: 31005 | B67: 基础设施建设 | C67: 0
A68: 31006 | B68: 大型修缮 | C68: 0
A69: 31007 | B69: 信息网络及软件购置更新 | C69: =D69+E69 -> 0
A70: 31008 | B70: 物资储备 | C70: 0
A71: 31009 | B71: 土地补偿 | C71: 0
A72: 31010 | B72: 安置补助 | C72: 0
A73: 31011 | B73: 地上附着物和青苗补偿 | C73: 0
A74: 31012 | B74: 拆迁补偿 | C74: 0
A75: 31013 | B75: 公务用车购置 | C75: 0
A76: 31019 | B76: 其他交通工具购置 | C76: 0
A77: 31021 | B77: 文物和陈列品购置 | C77: 0
A78: 31022 | B78: 无形资产购置 | C78: 0
A79: 31099 | B79: 其他资本性支出 | C79: 0
A80: 399 | B80: 其他支出 | C80: 0 | D80: =SUM(D81:D84) -> 0 | E80: =SUM(E81:E84) -> 0
A81: 39906 | B81: 赠与 | C81: 0
A82: 39907 | B82: 国家赔偿费用支出 | C82: 0
A83: 39908 | B83: 对民间非营利组织和群众性自治组织补贴 | C83: 0
A84: 39999 | B84: 其他支出 | C84: 0
A85: 合计 | C85: =C80+C63+C60+C47+C19+C5 -> 83,418.27 | D85: =D80+D63+D60+D47+D19+D5 -> 72,096.30 | E85: =E80+E63+E60+E47+E19+E5 -> 11,321.97

Sheet 9工资福利(政府预算)
A2: 一般公共预算基本支出表--人员经费(工资福利支出)(按政府预算经济分类)
A3: 单位：岳阳县教育体育局(汇总) | M3: 金额单位：万元
A4: 功能科目 | D4: 单位代码 | E4: 单位名称（功能科目） | F4: 总 计 | G4: 机关工资福利支出 | L4: 对事业单位经常性补助
A5: 类 | B5: 款 | C5: 项 | G5: 合计 | H5: 工资奖金津补贴 | I5: 社会保障缴费 | J5: 住房公积金 | K5: 其他工资福利支出 | L5: 合计 | M5: 工资福利支出 | N5: 其他对事业单位补助
A6: 205 | D6: 084 | E6: 教育支出 | F6: =F7+F9+F14+F16 -> 57,057.30 | L6: =L7+L9+L14+L16 -> 57,057.30 | M6: 57,057.30
A7: 205 | B7: 01 | D7: 084 | E7: 教育管理事务 | F7: =L7 -> 1,154.08 | L7: =M7+N7 -> 1,154.08 | M7: 1,154.08
A8: 205 | B8: 01 | C8: 02 | D8: 084 | E8: 一般行政管理事务 | F8: =L8 -> 1,154.08 | L8: =M8+N8 -> 1,154.08 | M8: 1,154.08
A9: 205 | B9: 02 | D9: 084 | E9: 普通教育 | F9: 52,010.38 | L9: 52,010.38 | M9: =51110.38+900 -> 52,010.38
A10: 205 | B10: 02 | C10: 01 | D10: 084 | E10: 学前教育 | F10: 5,234.20 | L10: 5,234.20 | M10: 5,234.20
A11: 205 | B11: 02 | C11: 02 | D11: 084 | E11: 小学教育 | F11: 15,290.29 | L11: 15,290.29 | M11: 15,290.29
A12: 205 | B12: 02 | C12: 03 | D12: 084 | E12: 初中教育 | F12: 20,433.45 | L12: 20,433.45 | M12: 20,433.45
A13: 205 | B13: 02 | C13: 04 | D13: 084 | E13: 高中教育 | F13: 10,152.44 | L13: 10,152.44 | M13: 10,152.44
A14: 205 | B14: 03 | D14: 084 | E14: 职业教育 | F14: 3,340.80 | L14: 3,340.80 | M14: 3,340.80
A15: 205 | B15: 03 | C15: 02 | D15: 084 | E15: 中职业教育 | F15: 3,340.80 | L15: 3,340.80 | M15: 3,340.80
A16: 205 | B16: 07 | D16: 084 | E16: 特殊教育 | F16: 552.04 | L16: 552.04 | M16: 552.04
A17: 205 | B17: 07 | C17: 01 | D17: 084 | E17: 特殊学校教育 | F17: 552.04 | L17: 552.04 | M17: 552.04

Sheet 10工资福利
A2: 一般公共预算基本支出表--人员经费(工资福利支出)(按部门预算经济分类)
A3: 单位：岳阳县教育体育局(汇总) | U3: 金额单位：万元
A4: 功能科目 | D4: 单位代码 | E4: 单位名称（功能科目） | F4: 总 计 | G4: 工资津补贴 | L4: 社会保障缴费 | R4: 住房公积金 | S4: 其他工资福利支出
A5: 类 | B5: 款 | C5: 项 | G5: 合计 | H5: 基本工资 | I5: 津贴补贴 | J5: 奖金 | K5: 绩效工资 | L5: 合计 | M5: 机关事业单位基本养老保险缴费 | N5: 职业年金缴费 | O5: 职工基本医疗保险缴费 | P5: 公务员医疗补助缴费 | Q5: 其他社会保障缴费 | S5: 合计 | T5: 伙食补助费 | U5: 医疗费 | V5: 其他工资福利支出
A6: 205 | E6: 教育支出 | F6: =F7+F9+F14+F16 -> 57,057.30 | G6: =G7+G9+G14+G16 -> 40,599.04 | H6: 21,859.54 | I6: 2,778.50 | J6: 900.00 | K6: 15,061.00 | L6: 8,549.42 | M6: 5,272.00 | O6: 2,611.00 | P6: 45.00 | Q6: 621.42 | R6: 2,757.00 | S6: 5,151.84 | V6: 5,151.84
A7: 205 | B7: 01 | E7: 教育管理事务 | F7: =G7+L7+R7+S7 -> 2,054.08 | G7: =SUM(H7:K7) -> 1,685.08 | H7: 501.62 | I7: 72.24 | J7: 900.00 | K7: 211.22 | L7: =SUM(M7:Q7) -> 221.38 | M7: 145.44 | O7: 64.22 | P7: 0.90 | Q7: 10.82 | R7: 79.14 | S7: =T7+U7+V7 -> 68.48 | V7: 68.48
A8: 205 | B8: 01 | C8: 02 | D8: 084 | E8: 一般行政管理事务 | F8: =G8+L8+R8+S8 -> 2,054.08 | G8: =SUM(H8:K8) -> 1,685.08 | H8: 501.62 | I8: 72.24 | J8: 900.00 | K8: 211.22 | L8: =SUM(M8:Q8) -> 221.38 | M8: 145.44 | O8: 64.22 | P8: 0.90 | Q8: 10.82 | R8: 79.14 | S8: =T8+U8+V8 -> 68.48 | V8: 68.48
A9: 205 | B9: 02 | E9: 普通教育 | F9: 51,110.38 | G9: 36,312.62 | H9: 19,748.69 | I9: 2,453.42 | K9: 14,110.51 | L9: 7,553.21 | M9: 4,617.52 | O9: 2,322.01 | P9: 40.95 | Q9: 572.73 | R9: 2,400.87 | S9: 4,843.68 | V9: 4,843.68
A10: 205 | B10: 02 | C10: 01 | D10: 084 | E10: 学前教育 | F10: 5,234.20 | G10: 2,772.78 | H10: 1,780.67 | I10: 252.84 | K10: 739.27 | L10: 774.83 | M10: 509.04 | O10: 224.77 | P10: 3.15 | Q10: 37.87 | R10: 276.99 | S10: 1,409.60 | V10: 1,409.60
A11: 205 | B11: 02 | C11: 02 | D11: 084 | E11: 小学教育 | F11: 15,290.29 | G11: 11,970.71 | H11: 6,709.82 | I11: 719.66 | K11: 4,541.23 | L11: 2,159.67 | M11: 1,126.96 | O11: 780.73 | P11: 19.35 | Q11: 232.63 | R11: 501.51 | S11: 658.40 | V11: 658.40
A12: 205 | B12: 02 | C12: 03 | D12: 084 | E12: 初中教育 | F12: 20,433.45 | G12: 15,056.03 | H12: 7,371.05 | I12: 939.12 | K12: 6,745.86 | L12: 2,958.36 | M12: 1,890.72 | O12: 834.86 | P12: 11.70 | Q12: 221.08 | R12: 1,028.82 | S12: 1,390.24 | V12: 1,390.24
A13: 205 | B13: 02 | C13: 04 | D13: 084 | E13: 高中教育 | F13: 10,152.44 | G13: 6,513.10 | H13: 3,887.15 | I13: 541.80 | K13: 2,084.15 | L13: 1,660.35 | M13: 1,090.80 | O13: 481.65 | P13: 6.75 | Q13: 81.15 | R13: 593.55 | S13: 1,385.44 | V13: 1,385.44
A14: 205 | B14: 03 | D14: 084 | E14: 职业教育 | F14: 3,340.80 | G14: 2,233.80 | H14: 1,383.42 | I14: 216.72 | K14: 633.66 | L14: 664.14 | M14: 436.32 | O14: 192.66 | P14: 2.70 | Q14: 32.46 | R14: 237.42 | S14: 205.44 | V14: 205.44
A15: 205 | B15: 03 | C15: 02 | D15: 084 | E15: 中职业教育 | F15: 3,340.80 | G15: 2,233.80 | H15: 1,383.42 | I15: 216.72 | K15: 633.66 | L15: 664.14 | M15: 436.32 | O15: 192.66 | P15: 2.70 | Q15: 32.46 | R15: 237.42 | S15: 205.44 | V15: 205.44
A16: 205 | B16: 07 | D16: 084 | E16: 特殊教育 | F16: 552.04 | G16: 367.54 | H16: 225.81 | I16: 36.12 | K16: 105.61 | L16: 110.69 | M16: 72.72 | O16: 32.11 | P16: 0.45 | Q16: 5.41 | R16: 39.57 | S16: 34.24 | V16: 34.24
A17: 205 | B17: 07 | C17: 01 | D17: 084 | E17: 特殊学校教育 | F17: 552.04 | G17: 367.54 | H17: 225.81 | I17: 36.12 | K17: 105.61 | L17: 110.69 | M17: 72.72 | O17: 32.11 | P17: 0.45 | Q17: 5.41 | R17: 39.57 | S17: 34.24 | V17: 34.24

Sheet 11个人家庭(政府预算)
A2: 一般公共预算基本支出表--人员经费(对个人和家庭的补助)(按政府预算经济分类)
A3: 单位：岳阳县教育体育局(汇总) | J3: 金额单位：万元
A4: 功能科目 | D4: 单位代码 | E4: 单位名称（功能科目） | F4: 总计 | G4: 社会福利和救济 | H4: 助学金 | I4: 个人农业生产补贴 | J4: 离退休费 | K4: 其他对个人和家庭的补助
A5: 类 | B5: 款 | C5: 项
A6: 205 | E6: 教育支出 | F6: =F7+F9+F14+F16 -> 15,039.00 | H6: =H7+H9+H14+H16 -> 1,863.60 | K6: 13,175.40
A7: 205 | B7: 01 | E7: 教育管理事务 | F7: =SUM(G7:K7) -> 287.00 | H7: 0 | K7: 287.00
A8: 205 | B8: 01 | C8: 02 | D8: 084 | E8: 一般行政管理事务 | F8: =SUM(G8:K8) -> 287.00 | K8: 287.00
A9: 205 | B9: 02 | E9: 普通教育 | F9: 13,799.00 | H9: 1,781.60 | K9: 12,017.40
A10: 205 | B10: 02 | C10: 01 | D10: 084 | E10: 学前教育 | F10: 1,439.90 | H10: 182.90 | K10: 1,257.00
A11: 205 | B11: 02 | C11: 02 | D11: 084 | E11: 小学教育 | F11: 4,119.70 | H11: 635.00 | K11: 3,484.70
A12: 205 | B12: 02 | C12: 03 | D12: 084 | E12: 初中教育 | F12: 4,759.60 | H12: 608.70 | K12: 4,150.90
A13: 205 | B13: 02 | C13: 04 | D13: 084 | E13: 高中教育 | F13: 3,479.80 | H13: 355.00 | K13: 3,124.80
A14: 205 | B14: 03 | E14: 职业教育 | F14: 878.60 | H14: 75.60 | K14: 803.00
A15: 205 | B15: 03 | C15: 02 | D15: 084 | E15: 中职业教育 | F15: 878.60 | H15: 75.60 | K15: 803.00
A16: 205 | B16: 07 | E16: 特殊教育 | F16: 74.40 | H16: 6.40 | K16: 68.00
A17: 205 | B17: 07 | C17: 01 | D17: 084 | E17: 特殊学校教育 | F17: 74.40 | H17: 6.40 | K17: 68.00

Sheet 12个人家庭
A2: 一般公共预算基本支出表--人员经费(对个人和家庭的补助)（按部门预算经济分类）
A3: 单位：岳阳县教育体育局(汇总) | Q3: 金额单位：万元
A4: 功能科目 | D4: 单位代码 | E4: 单位名称（功能科目） | F4: 总计 | G4: 离休费 | H4: 退休费 | I4: 退职（役）费 | J4: 抚恤金 | K4: 生活补助 | L4: 救济费 | M4: 医疗费补助 | N4: 助学金 | O4: 奖励金 | P4: 代缴社会保险费 | Q4: 个人农业生产补贴 | R4: 其他对个人和家庭的补助
A5: 类 | B5: 款 | C5: 项
A6: 205 | D6: 084 | E6: 教育支出 | F6: =F7+F9+F14+F16 -> 15,039.00 | G6: =G7+G9+G14+G16 -> 55.00 | K6: 7,727.50 | M6: 52.00 | N6: 1,863.60 | R6: 5,340.90
A7: 205 | B7: 01 | D7: 084 | E7: 教育管理事务 | F7: =SUM(G7:R7) -> 287.00 | G7: 1.00 | K7: 224.00 | R7: 62.00
A8: 205 | B8: 01 | C8: 02 | D8: 084 | E8: 一般行政管理事务 | F8: =SUM(G8:R8) -> 287.00 | G8: 1.00 | K8: 224.00 | R8: 62.00
A9: 205 | B9: 02 | D9: 084 | E9: 普通教育 | F9: 13,799.00 | G9: 52.00 | K9: 6,775.50 | M9: 50.00 | N9: 1,781.60 | R9: 5,139.90
A10: 205 | B10: 02 | C10: 01 | D10: 084 | E10: 学前教育 | F10: 1,439.90 | G10: 3.00 | N10: 182.90 | R10: 1,254.00
A11: 205 | B11: 02 | C11: 02 | D11: 084 | E11: 小学教育 | F11: 4,119.70 | G11: 25.00 | K11: 2,100.70 | M11: 4.00 | N11: 635.00 | R11: 1,355.00
A12: 205 | B12: 02 | C12: 03 | D12: 084 | E12: 初中教育 | F12: 4,759.60 | G12: 9.00 | K12: 2,250.00 | M12: 41.00 | N12: 608.70 | R12: 1,850.90
A13: 205 | B13: 02 | C13: 04 | D13: 084 | E13: 高中教育 | F13: 3,479.80 | G13: 15.00 | K13: 2,424.80 | M13: 5.00 | N13: 355.00 | R13: 680.00
A14: 205 | B14: 03 | D14: 084 | E14: 职业教育 | F14: 878.60 | G14: 2.00 | K14: 672.00 | M14: 2.00 | N14: 75.60 | R14: 127.00
A15: 205 | B15: 03 | C15: 02 | D15: 084 | E15: 中职业教育 | F15: 878.60 | G15: 2.00 | K15: 672.00 | M15: 2.00 | N15: 75.60 | R15: 127.00
A16: 205 | B16: 07 | D16: 084 | E16: 特殊教育 | F16: 74.40 | K16: 56.00 | N16: 6.40 | R16: 12.00
A17: 205 | B17: 07 | C17: 01 | D17: 084 | E17: 特殊学校教育 | F17: 74.4 | K17: 56.00 | N17: 6.40 | R17: 12.00

Sheet 13商品服务(政府预算)
A2: 一般公共预算基本支出表--公用经费(商品和服务支出)（按政府预算经济分类）
A3: 单位：岳阳县教育体育局(汇总) | S3: 金额单位：万元
A4: 功能科目 | D4: 单位代码 | E4: 单位名称（功能科目） | F4: 总计 | G4: 机关商品和服务支出 | R4: 对事业单位经常性补助
A5: 类 | B5: 款 | C5: 项 | G5: 合计 | H5: 办公经费 | I5: 会议费 | J5: 培训费 | K5: 专用材料购置费 | L5: 委托业务费 | M5: 公务接待费 | N5: 因公出国（境）费用 | O5: 公务用车运行维护费 | P5: 维修(护)费 | Q5: 其他商品和服务支出 | R5: 合计 | S5: 商品和服务支出 | T5: 其他对事业单位补助
A6: 205 | D6: 084 | E6: 教育支出 | F6: =F7+F9+F14+F16 -> 11,321.97 | G6: =G7+G9+G14+G16 -> 679.32 | H6: 67.93 | I6: 67.93 | J6: 67.93 | K6: 13.59 | P6: 217.38 | Q6: 244.55 | R6: 10,642.65 | S6: 10,642.65
A7: 205 | B7: 01 | D7: 084 | E7: 教育管理事务 | F7: =G7+R7 -> 356.94 | G7: =SUM(H7:Q7) -> 21.42 | H7: 2.14 | I7: 2.14 | J7: 2.14 | K7: 0.43 | L7: 0 | M7: 0 | N7: 0 | O7: 0 | P7: 6.85 | Q7: 7.71 | R7: =S7+T7 -> 335.52 | S7: 335.52
A8: 205 | B8: 01 | C8: 02 | D8: 084 | E8: 一般行政管理事务 | F8: =G8+R8 -> 356.94 | G8: =SUM(H8:Q8) -> 21.42 | H8: 2.14 | I8: 2.14 | J8: 2.14 | K8: 0.43 | L8: 0 | M8: 0 | N8: 0 | O8: 0 | P8: 6.85 | Q8: 7.71 | R8: =S8+T8 -> 335.52 | S8: 335.52
A9: 205 | B9: 02 | D9: 084 | E9: 普通教育 | F9: 10,285.07 | G9: 617.10 | H9: 61.71 | I9: 61.71 | J9: 61.71 | K9: 12.34 | L9: 0 | M9: 0 | N9: 0 | O9: 0 | P9: 197.47 | Q9: 222.16 | R9: 9,667.97 | S9: 9,667.97
A10: 205 | B10: 02 | C10: 01 | D10: 084 | E10: 学前教育 | F10: 1,078.51 | G10: 64.71 | H10: 6.47 | I10: 6.47 | J10: 6.47 | K10: 1.29 | L10: 0 | M10: 0 | N10: 0 | O10: 0 | P10: 20.71 | Q10: 23.30 | R10: 1,013.80 | S10: 1,013.80
A11: 205 | B11: 02 | C11: 02 | D11: 084 | E11: 小学教育 | F11: 3,035.52 | G11: 182.13 | H11: 18.21 | I11: 18.21 | J11: 18.21 | K11: 3.64 | L11: 0 | M11: 0 | N11: 0 | O11: 0 | P11: 58.28 | Q11: 65.57 | R11: 2,853.39 | S11: 2,853.39
A12: 205 | B12: 02 | C12: 03 | D12: 084 | E12: 初中教育 | F12: 4,014.03 | G12: 240.84 | H12: 24.08 | I12: 24.08 | J12: 24.08 | K12: 4.82 | L12: 0 | M12: 0 | N12: 0 | O12: 0 | P12: 77.07 | Q12: 86.70 | R12: 3,773.19 | S12: 3,773.19
A13: 205 | B13: 02 | C13: 04 | D13: 084 | E13: 高中教育 | F13: 2,157.01 | G13: 129.42 | H13: 12.94 | I13: 12.94 | J13: 12.94 | K13: 2.59 | L13: 0 | M13: 0 | N13: 0 | O13: 0 | P13: 41.41 | Q13: 46.59 | R13: 2,027.59 | S13: 2,027.59
A14: 205 | B14: 03 | D14: 084 | E14: 职业教育 | F14: 634.06 | G14: 38.04 | H14: 3.80 | I14: 3.80 | J14: 3.80 | K14: 0.76 | L14: 0 | M14: 0 | N14: 0 | O14: 0 | P14: 12.17 | Q14: 13.70 | R14: 596.02 | S14: 596.02
A15: 205 | B15: 03 | C15: 02 | D15: 084 | E15: 中职业教育 | F15: 634.06 | G15: 38.04 | H15: 3.80 | I15: 3.80 | J15: 3.80 | K15: 0.76 | L15: 0 | M15: 0 | N15: 0 | O15: 0 | P15: 12.17 | Q15: 13.70 | R15: 596.02 | S15: 596.02
A16: 205 | B16: 07 | D16: 084 | E16: 特殊教育 | F16: 45.90 | G16: 2.75 | H16: 0.28 | I16: 0.28 | J16: 0.28 | K16: 0.06 | L16: 0 | M16: 0 | N16: 0 | O16: 0 | P16: 0.88 | Q16: 0.99 | R16: 43.15 | S16: 43.15
A17: 205 | B17: 07 | C17: 01 | D17: 084 | E17: 特殊学校教育 | F17: 45.90 | G17: 2.75 | H17: 0.28 | I17: 0.28 | J17: 0.28 | K17: 0.06 | P17: 0.88 | Q17: 0.99 | R17: 43.15 | S17: 43.15

Sheet 14商品服务
A2: 一般公共预算基本支出表--公用经费(商品和服务支出)(按部门预算经济分类)
A3: 单位：岳阳县教育体育局(汇总) | AF3: 金额单位：万元
A4: 功能科目 | D4: 单位代码 | E4: 单位名称（功能科目） | F4: 总 计 | G4: 办公费 | H4: 印刷费 | I4: 咨询费 | J4: 手续费 | K4: 水费 | L4: 电费 | M4: 邮电费 | N4: 取暖费 | O4: 物业管理费 | P4: 差旅费 | Q4: 因公出国（境）费用 | R4: 维修(护)费 | S4: 租赁费 | T4: 会议费 | U4: 培训费 | V4: 公务接待费 | W4: 专用材料费 | X4: 被装购置费 | Y4: 专用燃料费 | Z4: 劳务费 | AA4: 委托业务费 | AB4: 工会经费 | AC4: 福利费 | AD4: 公务用车运行维护费 | AE4: 其他交通费用 | AF4: 税金及附加费用 | AG4: 其他商品和服务支出
A5: 类 | B5: 款 | C5: 项
A6: 205 | E6: 教育支出 | F6: =F7+F9+F14+F16 -> 11,321.97 | G6: =G7+G9+G14+G16 -> 957.50 | H6: 763.80 | K6: 566.60 | L6: 751.90 | M6: 180.10 | O6: 999.80 | P6: 461.40 | R6: 2,950.25 | T6: 260.50 | U6: 928.70 | V6: 94.80 | AB6: 927.33 | AC6: 63.39 | AE6: 413.50 | AG6: 1,002.40
A7: 205 | B7: 01 | D7: 084 | E7: 教育管理事务 | F7: =SUM(G7:AG7) -> 356.94 | G7: 29.82 | H7: 21.90 | K7: 16.00 | L7: 18.80 | M7: 4.00 | O7: 17.10 | P7: 7.50 | R7: 130.00 | T7: 5.90 | U7: 21.60 | V7: 2.20 | AB7: 22.41 | AC7: 2.59 | AE7: 12.80 | AG7: 44.32
A8: 205 | B8: 01 | C8: 02 | D8: 084 | E8: 一般行政管理事务 | F8: =SUM(G8:AG8) -> 356.94 | G8: 29.82 | H8: 21.90 | K8: 16.00 | L8: 18.80 | M8: 4.00 | O8: 17.10 | P8: 7.50 | R8: 130.00 | T8: 5.90 | U8: 21.60 | V8: 2.20 | AB8: 22.41 | AC8: 2.59 | AE8: 12.80 | AG8: 44.32
A9: 205 | B9: 02 | E9: 普通教育 | F9: 10,285.07 | G9: 867.26 | H9: 698.17 | K9: 519.75 | L9: 676.60 | M9: 163.55 | O9: 926.60 | P9: 434.20 | R9: 2,647.45 | T9: 237.17 | U9: 832.80 | V9: 84.92 | AB9: 837.12 | AC9: 57.35 | AE9: 370.60 | AG9: 931.53
A10: 205 | B10: 02 | C10: 01 | D10: 084 | E10: 学前教育 | F10: 1,078.51 | G10: 87.22 | H10: 49.21 | K10: 34.94 | L10: 63.49 | M10: 14.45 | O10: 63.49 | P10: 32.50 | R10: 358.35 | T10: 24.93 | U10: 83.98 | V10: 8.95 | AB10: 86.66 | AC10: 26.09 | AE10: 34.21 | AG10: 110.04
A11: 205 | B11: 02 | C11: 02 | D11: 084 | E11: 小学教育 | F11: 3,035.52 | G11: 289.17 | H11: 279.38 | K11: 195.52 | L11: 163.24 | M11: 75.11 | O11: 363.24 | P11: 122.41 | R11: 462.31 | T11: 107.36 | U11: 283.66 | V11: 32.85 | AB11: 240.65 | AC11: 14.90 | AE11: 151.22 | AG11: 254.5
A12: 205 | B12: 02 | C12: 03 | D12: 084 | E12: 初中教育 | F12: 4,014.03 | G12: 230.27 | H12: 267.25 | K12: 117.29 | L12: 217.21 | M12: 45.55 | O12: 317.21 | P12: 133.74 | R12: 1,452.57 | T12: 64.77 | U12: 288.94 | V12: 26.34 | AB12: 263.32 | AC12: 9.69 | AE12: 114.73 | AG12: 465.15
A13: 205 | B13: 02 | C13: 04 | D13: 084 | E13: 高中教育 | F13: 2,157.01 | G13: 260.60 | H13: 102.33 | K13: 172.00 | L13: 232.66 | M13: 28.44 | O13: 182.66 | P13: 145.55 | R13: 374.22 | T13: 40.11 | U13: 176.22 | V13: 16.78 | AB13: 246.49 | AC13: 6.67 | AE13: 70.44 | AG13: 101.84
A14: 205 | B14: 03 | D14: 084 | E14: 中职业教育 | F14: 634.06 | G14: 54.96 | H14: 40.20 | K14: 28.50 | L14: 51.90 | M14: 11.70 | O14: 51.90 | P14: 18.30 | R14: 167.20 | T14: 16.20 | U14: 68.70 | V14: 7.20 | AB14: 62.70 | AC14: 3.30 | AE14: 27.90 | AG14: 23.4
A15: 205 | B15: 03 | C15: 02 | D15: 084 | E15: 中职业教育 | F15: 634.06 | G15: 54.96 | H15: 40.20 | K15: 28.50 | L15: 51.90 | M15: 11.70 | O15: 51.90 | P15: 18.30 | R15: 167.20 | T15: 16.20 | U15: 68.70 | V15: 7.20 | AB15: 62.70 | AC15: 3.30 | AE15: 27.90 | AG15: 23.4
A16: 205 | B16: 07 | D16: 084 | E16: 特殊学校教育 | F16: 45.90 | G16: 5.46 | H16: 3.53 | K16: 2.35 | L16: 4.60 | M16: 0.85 | O16: 4.20 | P16: 1.40 | R16: 5.60 | T16: 1.23 | U16: 5.60 | V16: 0.48 | AB16: 5.10 | AC16: 0.15 | AE16: 2.20 | AG16: 3.15
A17: 205 | B17: 07 | C17: 01 | D17: 084 | E17: 特殊学校教育 | F17: 45.90 | G17: 5.46 | H17: 3.53 | K17: 2.35 | L17: 4.60 | M17: 0.85 | O17: 4.20 | P17: 1.40 | R17: 5.60 | T17: 1.23 | U17: 5.60 | V17: 0.48 | AB17: 5.10 | AC17: 0.15 | AE17: 2.20 | AG17: 3.15

Sheet 15三公
A2: 一般公共预算“三公”经费支出表
A3: 单位：岳阳县教育体育局(汇总) | G3: 金额单位：万元
A4: 单位编码 | B4: 单位名称 | C4: “三公”经费合计 | D4: 因公出国（境）费 | E4: 公务用车购置及运行费 | H4: 公务接待费
E5: 小计 | F5: 公务用车购置费 | G5: 公务用车运行费
A6: 84 | B6: 岳阳县教育体育局(汇总) | C6: 94.80 | H6: 94.80

Sheet 16政府性基金
A2: 政府性基金预算支出表
A3: 单位：岳阳县教育体育局(汇总) | G3: 金额单位：万元
A4: 科目编码 | B4: 科目名称 | C4: 合计 | D4: 本年政府性基金预算支出 | H4: 项目支出
D5: 小计 | E5: 人员经费 | G5: 公用经费
E6: 工资福利支出 | F6: 对个人和家庭的补助
B7: 合计 | C7: 0.00
A14: 说明：本年无政府性基金预算支出

Sheet 17政府性基金(政府预算)
A2: 政府性基金预算支出分类汇总表（按政府预算经济分类）
A3: 单位：岳阳县教育体育局(汇总) | S3: 金额单位：万元
A4: 功能科目 | D4: 单位代码 | E4: 单位名称（功能科目） | F4: 总 计 | G4: 机关工资福利支出 | H4: 机关商品和服务支出 | I4: 机关资本性支出(一) | J4: 机关资本性支出(二) | K4: 对事业单位经常性补助 | L4: 对事业单位资本性补助 | M4: 对企业补助 | N4: 对企业资本性支出 | O4: 对个人和家庭的补助 | P4: 对社会保障基金补助 | Q4: 债务利息及费用支出 | R4: 债务还本支出 | S4: 转移性支出 | T4: 其他支出
A5: 类 | B5: 款 | C5: 项
E6: 合计 | F6: 0.00
A11: 说明：本年无政府性基金预算支出

Sheet 18政府性基金（部门预算）
A2: 政府性基金预算支出分类汇总表（按部门预算经济分类）
A3: 单位：岳阳县教育体育局(汇总) | P3: 金额单位：万元
A4: 功能科目 | D4: 单位代码 | E4: 单位名称（功能科目） | F4: 总 计 | G4: 基本支出 | K4: 项目支出
A5: 类 | B5: 款 | C5: 项 | G5: 合计 | H5: 工资福利支出 | I5: 一般商品和服务支出 | J5: 对个人和家庭的补助 | K5: 合计 | L5: 按项目管理的商品和服务支出 | M5: 按项目管理的对个人和家庭的补助 | N5: 债务利息及费用支出 | O5: 资本性支出（基本建设） | P5: 资本性支出 | Q5: 对企业补助（基本建设） | R5: 对企业补助 | S5: 对社会保障基金补助 | T5: 其他支出
E6: 合计 | F6: 0.00
A11: 说明：本年无政府性基金预算支出

Sheet 19国有资本经营预算
A2: 国有资本经营预算支出表
A3: 单位：岳阳县教育体育局(汇总) | H3: 金额单位：万元
A4: 科目编码 | B4: 科目名称 | C4: 合计 | D4: 本年国有资本经营预算支出 | H4: 项目支出
D5: 小计 | E5: 人员经费 | G5: 公用经费
E6: 工资福利支出 | F6: 对个人和家庭的补助
B7: 合计 | C7: 0.00
A14: 说明：本年无国有资本经营预算支出

Sheet 20财政专户管理资金
A2: 财政专户管理资金预算支出表
A3: 单位：岳阳县教育体育局(汇总) | H3: 金额单位：万元
A4: 科目编码 | B4: 科目名称 | C4: 合计 | D4: 本年财政专户管理资金预算支出 | H4: 项目支出
D5: 小计 | E5: 人员经费 | G5: 公用经费
E6: 工资福利支出 | F6: 对个人和家庭的补助
B7: 合计 | C7: 0.00
A14: 说明：本年无财政专户管理资金预算支出

Sheet 21专项清单
A2: 专项资金预算汇总表
A3: 单位：岳阳县教育体育局(汇总) | M3: 金额单位：万元
A4: 单位代码 | B4: 单位名称（专项名称） | C4: 预算额度 | M4: 预算编制方式
C5: 总计 | D5: 一般公共预算 | J5: 政府性基金 | K5: 国有资本经营预算 | L5: 社会保险基金预算资金 | M5: 编入部门预算金额 | N5: 财政代编金额
D6: 一般公共预算小计 | E6: 经费拨款 | F6: 纳入一般公共预算管理的非税收入 | G6: 一般债券 | H6: 外国政府和国际组织贷款 | I6: 外国政府和国际组织赠款
A7: 84 | B7: 合计 | C7: =SUM(D7:N7) -> 16,898.59 | E7: 16,898.59
A8: 84 | B8: 教育管理事务、普通教育、职业教育、特殊教育专项 | C8: =SUM(D8:N8) -> 16,898.59 | E8: 16,898.59

Sheet 22项目支出绩效目标表
C2: 项目支出绩效目标表
A3: 单位：岳阳县教育体育局(汇总) | L3: 金额单位：万元
A4: 单位代码 | B4: 单位（专项）名称 | C4: 资金总额 | D4: 实施期绩效目标 | E4: 绩效指标
E5: 一级指标 | F5: 二级指标 | G5: 三级指标 | H5: 指标值 | I5: 指标值内容 | J5: 评（扣分标准） | K5: 度量单位 | L5: 指标值类型 | M5: 备注
A6: 84 | B6: 岳阳县教育体育局(汇总) | C6: 16,898.59
A7: 84 | B7: 岳阳县教育体育局(汇总) | C7: 16,898.59 | D7: 落实国家关于教育的各项方针，政策，如期完成年初制度定的各项工作任务。 | E7: 履职目 标实现 | F7: 质量指标 | G7: 国家教育方针政策 | H7: 定性 | I7: 合理 | J7: 根据情况酌情扣减 | L7: 坚决贯彻落实国家各项教育方针政策
F8: 时效指标 | G8: 完成德育工作、体育、卫生、艺术教育和国防教育工作 | H8: 定性 | I8: 合理 | J8: 根据情况酌情扣减 | L8: 完成学前、义教、高中、职高、中职学校的思政、体育、卫生、艺术和国防等教育
F9: 数量指标 | G9: 完成年初始制定的各项教育发展规划及重点项目 | H9: 定性 | I9: 合理 | J9: 根据情况酌情扣减 | L9: 完成年初制定的各项教育发展规划及重点项目
E10: 满意度指标 | F10: 服务对象满意度指标 | G10: 滿意度 | H10: 定量 | I10: 学生、家长、教师、社会的满意度 | J10: 根据情况酌情扣减 | K10: % | L10: 满意度在95%以上

Sheet 23整体支出绩效目标表
A1: 整体支出绩效目标表
A2: 单位：岳阳县教育体育局(汇总) | Q2: 金额单位：万元
A3: 单位编码 | B3: 单位名称 | C3: 年度预算申请 | J3: 整体绩效目标 | K3: 部门整体支出年度绩效目标
C4: 资金总额 | D4: 按收入性质分 | H4: 按支出性质分
D5: 一般公共预算 | E5: 政府性基金拨款 | F5: 财政专户管理资金 | G5: 其他资金 | H5: 基本支出 | I5: 项目支出 | K5: 一级指标 | L5: 二级指标 | M5: 三级指标 | N5: 指标值类型 | O5: 指标值 | P5: 度量单位 | Q5: 指标值说明 | R5: 备注
A6: 84 | B6: 岳阳县教育 体育局（汇总） | C6: 100,316.86 | D6: 95,564.00 | G6: 4,752.86 | H6: 83,418.27 | I6: 16,898.59 | J6: 贯彻落实党和国家的教育方针、政策、法律、法规、规章，研究制定地方性的教育政策并监督执行；统筹管理全县初等、中等学历教育；主管全县学校招生考试；综合管理和指导各层次的非学历培训、学前教育、继续教育等工作；组织指导教育理论、教材教法和教学手段方法等方面的研究；领导全县教育系统的纪检、监察工作；指导学校思想政治工作、德育工作、体育、卫生、艺术教育和国防教育工作；指导编制并负责汇总全县学校发展情况和教育经费年度预、决算，归口管理本县教育事业经费；组织、指导全县教育系统的内部审计工作；负责学校的经济责任审计；会同有关部门制订全县教育系统有关机构编制、劳动工资、工作绩效奖惩、人事管理等方面的规章制度并组织实施；负责全县教育系统教师资格认定、招聘录用、人员调配等工作；负责全县教师评聘；负责社会力量办学的审批、注册和报批工作；指导、协调全县大中专毕业生就业，负责制定并组织实施大中专毕业生就业方案，配合相关部门组织开展企事业招聘等活动；指导、管理全县学校勤工俭学工作。拟订全县群众体育工作的发展规划；推行全民健身计划，建立和完善全民健身体系，负责全民健身工程的实施和监督管理；指导开展群众性体育活动；组织协调参加县级以上群众性体育赛事及活动；指导和管理体育行业和群众性单项体育协会的工作；指导开展国民体质监测活动和体育场地普查工作；指导《国家体育锻炼标准》实施；负责全县全民健身体育项目裁判员、社会体育指导员的培训计划和管理；依法审查体育从业人员资格；指导全县老年体育工作；管理高危体育项目的审查、批准、检查。负责全县体育产业的开发和管理；指导公共体育设施的建设；承担规范体育服务管理、公共体育设施监督管理、体育统计、体育彩票发行管理工作。指导管理全县竞技体育、体育科学研究工作，拟定全县青少年体育工作发展规划，指导监督青少年体育锻炼标准的实施；指导全县各级业余体校、体育传统项目学校、体育后备人才基地、青少年体育俱乐部的建设；指导推动学校体育的发展，指导和管理全县青少年体育竞赛活动，抓好反兴奋剂工作；负责全县等级运动员的审核、申报、办理工作及业余体校教练员的岗位培训工作；负责竞赛项目裁判员、课余训练教练员的业务培训、考核；制订优秀运动员奖励政策和措施。负责全县中小学体育和国防教育工作的管理、指导和评价；负责组织开展体育竞赛等交流活动；指导并监督全县学生体质状况监测，指导协调学校阳光体育、校园足球工作的实施；负责并协调城区学校国防教育和学生军训工作；负责全县学生健康教育、环境卫生、教学卫生工作；负责并协调城区学校爱卫迎检工作。 | K6: 产出指标 | L6: 履职目 标实现 | M6: 国家教育方针政策 | N6: 定性 | O6: 合理 | Q6: 坚决贯彻落实国家各项教育方针政策
M7: 完成德育工作、体育、卫生、艺术教育和国防教育工作 | N7: 定性 | O7: 合理 | Q7: 完成学前、义教、高中、职高、中职学校的思政、体育、卫生、艺术和国防等教育
M8: 完成年初始制定的各项教育发展规划及重点项目 | N8: 定性 | O8: 合理 | Q8: 完成年初制定的各项教育发展规划及重点项目
K9: 效益指标 | L9: 满意度 | M9: 学生满意度 | N9: ≥ | O9: 95 | P9: % | Q9: 学生对教育的满意度达95%以上
M10: 家长满意度 | N10: ≥ | O10: 95 | P10: % | Q10: 家旗对教育的满意度达95%以上
M11: 教师满意度 | N11: ≥ | O11: 95 | P11: % | Q11: 教师对教育的满意度达95%以上
M12: 社会满意度 | N12: ≥ | O12: 95 | P12: % | Q12: 社会对教育的满意度达95%以上
